bitfinex/quotes_ETHUSD_20241009
["timestamp","ask_amount","ask_price","bid_price","bid_amount"]
[1728493775890,4.10493,2436.1,2435.9,0.826]
[1728493776422,4.10509,2436.0,2435.7,0.7783]
[1728493776580,4.10517,2436.0,2435.7,0.7783]
[1728493776784,4.8625,2436.5,2435.7,5.3923085]
[1728493776985,4.10491,2436.2,2435.7,4.88377]
[1728493777187,4.10494,2436.1,2435.7,4.88377]
[1728493778394,4.10511,2436.0,2435.7,0.7783]
[1728493778734,3.0,2435.8,2435.0,0.85207093]
[1728493779078,4.10601,2435.5,2435.1,4.87372]
[1728493779438,4.106,2435.5,2435.1,0.7672]
[1728493779641,3.0,2435.8,2434.9,0.7672]
[1728493779642,4.10636,2435.3,2434.9,0.7672]
[1728493779934,0.7521,2435.4,2434.9,4.87411]
[1728493780092,4.10628,2435.3,2434.9,5.361521]
[1728493780689,4.10628,2435.3,2434.9,1.254611]
[1728493780887,4.10628,2435.3,2435.0,0.08212414]
[1728493781116,4.10628,2435.3,2434.9,1.254611]
[1728493781333,4.10628,2435.3,2435.0,0.08212415]
[1728493781540,4.10611,2435.4,2435.0,5.06172851]
[1728493781744,4.10611,2435.4,2435.0,0.95505851]
[1728493781914,4.10611,2435.4,2434.9,5.361521]
[1728493781915,4.10632,2435.3,2434.9,5.361521]
[1728493782432,4.10658,2435.2,2434.9,0.7672]
[1728493782631,4.10658,2435.2,2434.6,7.90607512]
[1728493782632,4.10672,2435.1,2434.7,0.7729]
[1728493782876,4.10707,2434.9,2434.5,0.85207093]
[1728493783036,4.10707,2434.9,2434.4,0.7729]
[1728493783037,4.10722,2434.8,2434.4,0.7729]
[1728493783241,4.10722,2434.8,2434.4,4.88067]
[1728493783391,4.1066,2435.1,2434.7,4.1072]
[1728493783597,4.10655,2435.2,2434.8,0.0819376]
[1728493785894,0.06599074,2435.1,2434.8,0.0819376]
[1728493786094,0.06599074,2435.1,2434.9,4.10689]
[1728493786392,4.10646,2435.2,2435.0,0.08193505]
[1728493786622,8.21304,2435.2,2435.0,0.08193505]
[1728493786845,4.10646,2435.2,2435.0,0.08193505]
[1728493787199,4.10646,2435.2,2434.9,0.08212709]
[1728493787709,8.21303,2435.2,2434.9,0.08212709]
[1728493787932,4.10669,2435.1,2434.8,0.8004]
[1728493788109,4.10669,2435.1,2434.9,0.08212879]
[1728493788438,4.88806,2435.2,2434.9,0.08212879]
[1728493788608,8.99462,2435.2,2434.9,0.08212879]
[1728493789202,4.88806,2435.2,2434.9,0.08212879]
[1728493789404,8.99459,2435.2,2434.9,0.08212879]
[1728493790127,4.10646,2435.2,2434.9,0.08212879]
[1728493790301,8.213,2435.2,2434.9,0.08212879]
[1728493791397,8.21298,2435.2,2434.9,0.08212879]
[1728493791691,4.10646,2435.2,2434.9,0.08212879]
[1728493791897,8.21299,2435.2,2434.9,0.08212879]
[1728493792745,4.10704,2434.9,2434.5,1.277967]
[1728493792899,4.10677,2435.0,2434.5,1.277967]
[1728493792900,4.1068,2435.0,2434.5,4.89741]
[1728493793098,4.10674,2435.1,2434.7,4.10718]
[1728493793840,4.10674,2435.1,2434.7,4.10722]
[1728493793995,4.10646,2435.2,2434.9,0.813]
[1728493794196,4.10646,2435.2,2435.0,0.08212725]
[1728493794396,4.1066,2435.1,2435.0,0.08212725]
[1728493794622,4.1066,2435.1,2434.9,0.89512896]
[1728493795505,4.1066,2435.1,2434.9,0.813]
[1728493799648,4.10596,2435.5,2434.9,1.305017]
[1728493799817,4.1058,2435.6,2435.1,4.10652]
[1728493800148,4.10566,2435.7,2435.3,4.10626]
[1728493800316,4.10566,2435.7,2435.2,4.91448]
[1728493800520,4.10566,2435.7,2435.3,4.10626]
[1728493801145,0.05868294,2435.6,2435.5,0.7904]
[1728493801456,4.10535,2435.9,2435.5,0.7904]
[1728493801617,0.05883809,2435.6,2435.5,0.7904]
[1728493801852,4.10535,2435.9,2435.5,0.7904]
[1728493802174,4.10548,2435.8,2435.5,1.280042]
[1728493802471,0.05883809,2435.7,2435.5,1.280042]
[1728493802838,4.10548,2435.8,2435.5,1.280042]
[1728493803075,0.05890703,2435.6,2435.5,1.280042]
[1728493803277,7.105,2436.1,2435.6,4.10576]
[1728493803440,4.10511,2436.0,2435.6,4.10569]
[1728493803782,4.10511,2436.0,2435.7,0.08210142]
[1728493804169,4.10527,2435.9,2435.5,5.385832]
[1728493804540,4.10512,2436.0,2435.6,4.18785314]
[1728493804852,4.10512,2436.0,2435.6,0.08210314]
[1728493805056,4.10512,2436.0,2435.6,4.18784314]
[1728493805375,8.21037,2436.0,2435.6,0.08210314]
[1728493805665,4.10535,2435.9,2435.5,5.385832]
[1728493805980,4.10535,2435.9,2435.5,1.280042]
[1728493806183,4.10535,2435.9,2435.5,0.7904]
[1728493806387,4.1056,2435.7,2435.3,4.89694]
[1728493806759,8.2113,2435.7,2435.3,4.89694]
[1728493806960,0.8224,2435.8,2435.3,4.89705]
[1728493806961,4.92785,2435.8,2435.3,4.89705]
[1728493807162,4.10531,2435.9,2435.4,4.10608]
[1728493807509,4.10546,2435.8,2435.4,4.10608]
[1728493807673,3.0,2436.2,2435.6,0.789]
[1728493807674,4.10501,2436.1,2435.6,0.789]
[1728493807894,0.8141,2436.2,2435.7,4.1855667]
[1728493808059,4.91844,2436.5,2436.1,4.10484]
[1728493808260,0.8141,2436.5,2436.2,0.08208785]
[1728493808500,0.20074515,2436.6,2436.4,4.10433]
[1728493808704,0.20074515,2436.6,2436.5,0.08207807]
[1728493809530,4.10383,2436.8,2436.5,0.08207807]
[1728493810006,4.10391,2436.7,2436.4,0.7837]
[1728493810684,4.31130022,2436.7,2436.4,0.7837]
[1728493810995,0.7767,2437.2,2436.5,4.10414]
[1728493811204,4.10342,2437.0,2436.5,4.10414]
[1728493811520,4.10342,2437.0,2436.5,8.2083]
[1728493811830,4.10359,2436.9,2436.6,0.04401973]
[1728493811980,4.10383,2436.8,2436.4,0.7837]
[1728493812184,4.10391,2436.7,2436.4,0.7837]
[1728493812395,4.10375,2436.8,2436.4,4.88811]
[1728493812601,4.10375,2436.8,2436.5,0.08207515]
[1728493813295,4.10359,2436.9,2436.5,4.18631515]
[1728493813501,4.10357,2436.9,2436.5,4.18631515]
[1728493814084,4.10357,2436.9,2436.5,0.98951767]
[1728493814284,4.10207,2437.8,2436.9,4.10348]
[1728493814553,0.20716408,2437.6,2437.0,0.7969]
[1728493814793,4.10318,2437.2,2437.0,0.7969]
[1728493815183,4.1029,2437.3,2437.0,0.7969]
[1728493815619,4.1029,2437.3,2437.0,0.87895014]
[1728493815985,0.05590817,2437.2,2437.0,0.87895014]
[1728493816319,4.1029,2437.3,2437.0,0.87895014]
[1728493816528,0.05600804,2437.1,2437.0,0.87895014]
[1728493816732,4.1029,2437.3,2437.0,0.87895014]
[1728493816962,0.05600804,2437.1,2437.0,0.87895014]
[1728493817169,4.1029,2437.3,2437.0,0.87895014]
[1728493817326,0.05600804,2437.2,2437.0,0.87895014]
[1728493817522,4.1029,2437.3,2437.0,0.87895014]
[1728493817726,0.05600804,2437.1,2437.0,0.87895014]
[1728493818039,0.05600804,2437.1,2437.0,1.37721015]
[1728493818350,1.03746408,2437.6,2437.0,0.7969]
[1728493818516,0.05605624,2437.1,2437.0,0.7969]
[1728493820967,4.15928624,2437.1,2436.8,0.7534]
[1728493821192,4.15928624,2437.1,2436.6,0.7534]
[1728493821193,4.10349,2437.0,2436.6,0.7534]
[1728493821459,4.10349,2437.0,2436.6,1.74031225]
[1728493821669,0.05603902,2436.9,2436.6,1.74031225]
[1728493821874,4.15961902,2436.9,2436.6,0.7534]
[1728493823268,4.15961902,2436.9,2436.6,0.79003109]
[1728493824060,0.05603902,2436.9,2436.6,0.79003109]
[1728493824372,0.05603902,2436.9,2436.7,0.08206865]
[1728493824793,0.05603902,2436.9,2436.7,4.18586865]
[1728493825080,4.85738,2437.2,2436.8,5.00806687]
[1728493825282,4.85738,2437.2,2436.9,0.08206113]
[1728493825486,3.0,2437.2,2436.9,0.08206113]
[1728493825984,7.10315,2437.2,2436.9,0.08206113]
[1728493826282,4.10291,2437.3,2436.9,0.08206113]
[1728493826441,4.10273,2437.4,2437.0,0.8182]
[1728493826637,4.10273,2437.4,2437.1,0.08205439]
[1728493827465,4.10273,2437.4,2437.1,0.08205399]
[1728493827682,0.818,2438.0,2437.2,4.10303]
[1728493827884,8.205,2437.6,2437.2,4.10303]
[1728493828052,4.10258,2437.5,2437.1,4.10316]
[1728493828252,3.0,2437.6,2437.2,4.10305]
[1728493828464,7.10239,2437.6,2437.2,4.10305]
[1728493828775,4.10264,2437.5,2437.0,4.92157]
[1728493829079,4.10264,2437.5,2437.1,0.94435661]
[1728493829385,4.10293,2437.3,2437.1,0.94435661]
[1728493829556,4.10287,2437.4,2437.0,0.8182]
[1728493830069,4.10287,2437.4,2437.0,4.92158]
[1728493830779,4.10287,2437.4,2437.1,0.08205351]
[1728493830983,0.05618018,2437.3,2437.1,0.08205351]
[1728493831289,0.05618018,2437.3,2437.1,0.62427347]
[1728493831693,0.05618018,2437.3,2436.9,0.41856611]
[1728493831694,4.10319,2437.2,2436.9,0.41856611]
[1728493831844,4.10333,2437.1,2436.8,0.8172]
[1728493832065,4.19722199,2437.1,2436.8,0.8172]
[1728493832507,4.10342,2437.0,2436.8,0.8172]
[1728493833221,0.09389199,2436.9,2436.8,0.8172]
[1728493833869,4.10313,2437.2,2436.8,0.8172]
[1728493834069,4.10313,2437.2,2436.9,0.0724396]
[1728493834291,0.09389199,2437.1,2436.9,0.0724396]
[1728493834571,4.19713199,2437.1,2436.9,0.0724396]
[1728493837274,4.10368,2436.9,2436.6,0.7579]
[1728493837711,0.09383348,2436.8,2436.6,0.7579]
[1728493838323,0.09383348,2436.8,2436.4,0.7579]
[1728493838324,4.19758348,2436.8,2436.4,0.7579]
[1728493838636,4.10402,2436.7,2436.4,2.03190428]
[1728493838774,0.09387825,2436.6,2436.4,0.7579]
[1728493840178,0.09387825,2436.6,2436.3,4.86241]
[1728493840677,0.09387825,2436.6,2436.3,0.7579]
[1728493840875,4.10431,2436.5,2436.3,0.7579]
[1728493841218,4.10431,2436.5,2436.2,0.49759279]
[1728493841517,0.09381282,2436.4,2436.2,0.49759279]
[1728493841875,0.09381282,2436.4,2436.3,0.54250328]
[1728493842404,4.10411,2436.6,2436.3,0.54250328]
[1728493842720,8.20827,2436.6,2436.3,0.62458427]
[1728493842875,0.09378528,2436.5,2436.3,0.62458427]
[1728493843078,0.09378528,2436.5,2436.4,4.87061]
[1728493843334,0.09378528,2436.5,2436.4,5.88206724]
[1728493843498,4.92293,2437.2,2436.6,4.10394]
[1728493843499,4.10331,2437.1,2436.6,4.10394]
[1728493843702,4.10331,2437.1,2436.8,0.7662]
[1728493844899,4.1034,2437.0,2436.8,0.7662]
[1728493845711,4.10381,2436.8,2436.6,0.8228]
[1728493845926,4.10357,2436.9,2436.4,5.03376994]
[1728493845927,4.10391,2436.7,2436.4,1.76038994]
[1728493846233,4.10376,2436.8,2436.5,0.64073932]
[1728493846440,0.09077273,2436.6,2436.5,0.64073932]
[1728493846609,0.09076928,2436.6,2436.5,0.64073932]
[1728493846942,4.10376,2436.8,2436.5,0.64073932]
[1728493847096,0.09076928,2436.6,2436.5,0.64073932]
[1728493847293,4.10376,2436.8,2436.5,0.64073932]
[1728493847521,0.09076928,2436.6,2436.5,0.64073932]
[1728493847732,4.10376,2436.8,2436.5,0.64073932]
[1728493847910,0.09076928,2436.6,2436.5,0.64073932]
[1728493848135,0.09076928,2436.6,2436.5,0.72281169]
[1728493848444,0.09076928,2436.6,2436.4,0.831]
[1728493848649,0.09076928,2436.6,2436.5,0.08207403]
[1728493848843,0.09060749,2436.6,2436.5,0.08207403]
[1728493849197,4.10377,2436.8,2436.5,0.08207403]
[1728493849705,0.09060749,2436.7,2436.5,0.08207403]
[1728493850140,4.10377,2436.8,2436.5,0.08207403]
[1728493850347,0.09060749,2436.6,2436.5,0.08207403]
[1728493850519,4.10377,2436.8,2436.5,0.08207403]
[1728493850705,0.09060749,2436.6,2436.5,0.08207403]
[1728493850899,4.10377,2436.8,2436.5,0.08207403]
[1728493851126,0.09060749,2436.6,2436.5,0.08207403]
[1728493851442,4.10397,2436.7,2436.5,0.08207403]
[1728493851609,0.09060749,2436.6,2436.5,0.08207403]
[1728493852608,4.19467749,2436.6,2436.4,0.831]
[1728493853447,4.19467749,2436.6,2436.3,0.54250328]
[1728493853822,4.19467749,2436.6,2436.2,4.91431]
[1728493854359,4.19467749,2436.6,2436.3,0.03786148]
[1728493854360,0.09060749,2436.6,2436.3,0.03786148]
[1728493854560,0.09060749,2436.6,2436.3,0.05777217]
[1728493855104,4.19469749,2436.6,2436.2,4.91431]
[1728493855401,4.19469749,2436.6,2436.2,0.8096]
[1728493855605,8.29893749,2436.6,2436.3,0.87130551]
[1728493855807,8.29889749,2436.6,2436.3,0.87130551]
[1728493856249,4.10426,2436.5,2436.3,0.87130551]
[1728493856753,0.09060749,2436.4,2436.3,0.87130551]
[1728493857046,4.19501749,2436.4,2436.3,0.87130551]
[1728493857251,4.10458,2436.3,2436.2,0.8096]
[1728493857418,4.19509749,2436.4,2436.2,0.8096]
[1728493858338,4.10458,2436.3,2435.9,7.90395512]
[1728493858540,4.10458,2436.3,2436.0,2.06134085]
[1728493858781,4.10444,2436.4,2436.0,6.16628085]
[1728493859277,0.09060749,2436.3,2436.0,6.16628085]
[1728493860438,0.09060749,2436.3,2436.0,2.06134085]
[1728493860642,4.10483,2436.2,2435.8,0.7819]
[1728493860875,0.09060749,2436.1,2435.9,0.04008652]
[1728493862748,0.09060749,2436.1,2435.8,4.88721]
[1728493862955,4.19563749,2436.1,2435.8,0.7819]
[1728493863547,4.10518,2436.0,2435.6,4.93559]
[1728493863882,4.19563749,2436.1,2435.6,4.93559]
[1728493863883,4.10494,2436.1,2435.7,6.12758351]
[1728493864047,0.09038705,2436.0,2435.7,2.02201351]
[1728493864385,4.1051,2436.0,2435.7,2.02201351]
[1728493864611,4.10494,2436.1,2435.7,2.02201351]
[1728493864773,0.09038705,2435.9,2435.7,2.02201351]
[1728493865082,4.10494,2436.1,2435.8,0.69575635]
[1728493865289,4.10511,2436.0,2435.7,2.02201351]
[1728493866280,4.10511,2436.0,2435.6,4.93555]
[1728493866804,0.7686,2436.7,2435.7,3.88080356]
[1728493867104,0.7686,2436.7,2436.1,4.86636]
[1728493867105,4.10432,2436.5,2436.1,4.86636]
[1728493867312,4.10432,2436.5,2436.2,0.56872047]
[1728493867958,4.10441,2436.4,2436.2,0.08208447]
[1728493868466,4.10428,2436.5,2436.2,0.08208447]
[1728493869720,4.10441,2436.4,2436.2,0.08208447]
[1728493870214,4.10426,2436.5,2436.2,0.08208447]
[1728493872483,4.10448,2436.4,2436.2,0.08208447]
[1728493872803,4.10448,2436.4,2435.9,4.87762]
[1728493873004,8.20901,2436.4,2436.0,0.898295]
[1728493873177,4.10448,2436.4,2436.0,0.898295]
[1728493873393,4.10483,2436.2,2435.9,0.7724]
[1728493873598,4.10503,2436.1,2435.9,0.7724]
[1728493874112,4.10527,2435.9,2435.7,0.7575]
[1728493874433,4.10509,2436.0,2435.7,0.7575]
[1728493874911,4.10509,2436.0,2435.8,0.06154892]
[1728493875114,4.10509,2436.0,2435.7,0.7575]
[1728493875426,4.10529,2435.9,2435.7,0.8395987]
[1728493875734,4.10529,2435.9,2435.7,0.0820987]
[1728493875893,0.0901336,2435.8,2435.7,0.0820987]
[1728493876096,0.0901336,2435.8,2435.6,0.7939]
[1728493876097,0.0901336,2435.8,2435.6,0.8760037]
[1728493877297,4.10527,2435.9,2435.6,0.8760037]
[1728493877497,0.0901336,2435.8,2435.6,0.8760037]
[1728493877723,0.0901336,2435.8,2435.6,1.37418607]
[1728493878349,4.10559,2435.7,2435.4,0.7857]
[1728493878577,4.10578,2435.6,2435.2,4.10641]
[1728493878842,4.10578,2435.6,2435.3,0.7857]
[1728493879230,0.0901336,2435.5,2435.3,0.7857]
[1728493879432,0.0901336,2435.5,2435.3,6.19247813]
[1728493879806,0.09003713,2435.4,2435.3,6.19247813]
[1728493880143,4.10559,2435.7,2435.3,6.19247813]
[1728493880298,4.10559,2435.7,2435.3,6.25409696]
[1728493880499,0.08998888,2435.6,2435.3,6.25409696]
[1728493880733,0.08998888,2435.6,2435.4,0.64619532]
[1728493880941,0.08998888,2435.6,2435.5,0.06734866]
[1728493880942,4.19576888,2435.6,2435.5,0.06734866]
[1728493881126,4.19576888,2435.6,2435.4,0.72830732]
[1728493881300,0.08998888,2435.6,2435.4,0.72830732]
[1728493881507,4.92121,2435.9,2435.3,2.08621813]
[1728493881508,0.8158,2435.9,2435.3,1.30051813]
[1728493881706,0.8158,2435.9,2435.2,0.20785622]
[1728493881707,0.08998888,2435.5,2435.2,0.20785622]
[1728493881944,4.10588,2435.6,2435.2,4.31428622]
[1728493882241,0.08998888,2435.4,2435.2,4.31428622]
[1728493882446,4.10588,2435.6,2435.2,4.31428622]
[1728493882740,0.08998888,2435.3,2435.2,1.50986835]
[1728493882940,4.10594,2435.5,2435.2,1.50986835]
[1728493883439,0.08995786,2435.4,2435.2,5.61626835]
[1728493883625,4.10578,2435.6,2435.2,1.50986835]
[1728493883827,4.10593,2435.5,2435.2,1.50986835]
[1728493884230,4.1061,2435.4,2435.1,0.8004]
[1728493884438,4.10652,2435.2,2434.8,4.92389]
[1728493884603,4.10662,2435.1,2434.8,0.8168]
[1728493884806,4.19638562,2435.1,2434.8,0.8168]
[1728493885034,4.1067,2435.1,2434.8,0.8168]
[1728493885240,0.08968562,2435.0,2434.8,0.8168]
[1728493885446,0.85368562,2435.0,2434.6,4.1073]
[1728493885607,0.08968562,2435.0,2434.8,0.8168]
[1728493885813,4.87004,2435.5,2434.9,4.10694]
[1728493885814,7.10613,2435.4,2434.9,4.10694]
[1728493886145,4.19595562,2435.3,2434.9,4.10694]
[1728493886349,4.19595562,2435.3,2435.0,0.08212327]
[1728493888838,4.10694,2434.9,2434.7,0.89305095]
[1728493889172,4.10678,2435.0,2434.6,0.761]
[1728493889770,0.08968562,2434.9,2434.6,0.761]
[1728493889975,0.08968562,2434.9,2434.6,4.86844]
[1728493890170,0.08968562,2434.9,2434.7,1.36146743]
[1728493890327,4.10678,2435.0,2434.7,1.36146743]
[1728493890839,0.08968562,2434.9,2434.7,1.36146743]
[1728493891436,0.08968562,2434.9,2434.7,9.26742255]
[1728493891768,4.1067,2435.1,2434.8,0.06322788]
[1728493892744,4.1067,2435.1,2434.8,1.47681387]
[1728493892936,4.10627,2435.3,2434.9,0.8016]
[1728493893131,4.10627,2435.3,2435.0,0.08212467]
[1728493893326,4.93098,2435.5,2435.0,0.08212467]
[1728493893327,4.10613,2435.4,2435.0,0.08212467]
[1728493893533,4.10606,2435.5,2435.0,9.72654925]
[1728493893759,4.10606,2435.5,2435.1,0.08211762]
[1728493894581,4.10635,2435.3,2435.0,1.43098458]
[1728493894747,4.10635,2435.3,2434.9,4.90853]
[1728493895078,4.10635,2435.3,2435.0,0.0821244]
[1728493895983,8.21271,2435.3,2435.0,0.0821244]
[1728493896185,4.10635,2435.3,2435.0,0.0821244]
[1728493896487,4.10635,2435.3,2435.0,0.96106035]
[1728493897194,7.85681,2435.7,2435.0,5.06781035]
[1728493897195,4.1062,2435.4,2435.0,5.06781035]
[1728493897348,4.1062,2435.4,2435.0,0.96106035]
[1728493897746,4.1062,2435.4,2435.0,4.98567595]
[1728493898172,4.1062,2435.4,2435.0,0.87893595]
[1728493898358,3.7512,2435.7,2434.9,0.8016]
[1728493898359,4.10637,2435.3,2434.9,0.8016]
[1728493898560,4.10655,2435.2,2434.9,0.8016]
[1728493899284,4.10593,2435.5,2435.0,0.0821267]
[1728493899616,4.10614,2435.4,2435.0,4.1888167]
[1728493899820,4.10614,2435.4,2435.1,1.28960418]
[1728493900026,4.10614,2435.4,2435.2,0.0821198]
[1728493900381,4.10614,2435.4,2435.1,1.28960418]
[1728493900581,4.10627,2435.3,2435.1,1.28960418]
[1728493901599,4.10627,2435.3,2434.9,9.0153]
[1728493901803,4.10627,2435.3,2434.9,4.90845]
[1728493902327,0.08892705,2435.2,2434.9,4.90845]
[1728493902498,0.08892705,2435.2,2434.9,9.01531]
[1728493902700,4.10627,2435.3,2434.9,4.90845]
[1728493902925,0.08892705,2435.2,2434.9,6.18987651]
[1728493903327,4.10627,2435.3,2434.9,2.08302651]
[1728493903543,0.08892705,2435.1,2434.9,0.8016]
[1728493903749,4.10627,2435.3,2434.9,0.8016]
[1728493903902,0.08892705,2435.0,2434.9,0.8016]
[1728493904097,9.04379,2435.3,2434.9,0.8016]
[1728493904299,0.08892705,2435.2,2434.9,0.8016]
[1728493904502,9.04379,2435.3,2434.9,2.08303951]
[1728493904754,0.08892705,2435.2,2434.9,2.08303951]
[1728493905103,0.8311,2435.3,2434.6,0.7895]
[1728493905305,0.8311,2435.3,2434.7,0.06576505]
[1728493905306,4.10711,2434.8,2434.7,0.06576505]
[1728493905535,0.0889167,2434.8,2434.6,0.7895]
[1728493905936,4.1069,2435.0,2434.6,1.37288488]
[1728493906110,0.0889167,2434.7,2434.6,0.86240344]
[1728493906448,4.10664,2435.1,2434.6,0.86240344]
[1728493906615,4.10664,2435.1,2434.7,4.10721]
[1728493906814,0.0889167,2435.0,2434.8,0.07289745]
[1728493907018,0.0889167,2435.0,2434.9,8.71274512]
[1728493907218,0.0889167,2435.0,2434.9,10.00201938]
[1728493907565,4.10611,2435.4,2435.0,4.10676]
[1728493907763,4.10611,2435.4,2435.1,0.08212162]
[1728493908333,4.10596,2435.5,2435.1,4.18872162]
[1728493909728,4.10596,2435.5,2435.1,4.1066]
[1728493910121,4.10596,2435.5,2435.2,0.08211905]
[1728493911961,4.1061,2435.4,2435.2,0.08211905]
[1728493912161,4.1061,2435.4,2435.0,4.10675]
[1728493912372,4.1061,2435.4,2435.1,1.41086994]
[1728493913270,4.1061,2435.4,2435.1,1.49299061]
[1728493917467,4.1061,2435.4,2435.1,1.41086994]
[1728493917665,4.9228,2435.6,2435.1,5.56219351]
[1728493917857,4.10593,2435.5,2435.2,0.06634523]
[1728493918047,4.10593,2435.5,2435.2,0.62472475]
[1728493919554,0.817,2435.6,2435.2,0.62472475]
[1728493919981,4.10553,2435.8,2435.3,4.64224762]
[1728493920183,4.10528,2435.9,2435.6,0.7772]
[1728493920504,4.10528,2435.9,2435.6,0.84369501]
[1728493920809,4.10544,2435.8,2435.4,4.10599]
[1728493920953,4.1056,2435.7,2435.4,2.07074146]
[1728493921493,0.08616621,2435.6,2435.4,2.07074146]
[1728493921699,4.10546,2435.8,2435.4,6.17680146]
[1728493921893,0.08616277,2435.7,2435.4,6.17680146]
[1728493922100,4.10546,2435.8,2435.4,6.17680146]
[1728493922362,0.08616277,2435.7,2435.5,1.40816766]
[1728493922657,4.10573,2435.7,2435.4,0.8138]
[1728493922852,4.10573,2435.7,2435.2,1.37927952]
[1728493922853,0.08616277,2435.6,2435.2,1.37927952]
[1728493923176,0.08616277,2435.6,2435.3,7.90493512]
[1728493923384,0.08616277,2435.6,2435.4,4.10603]
[1728493923577,8.21102,2435.8,2435.4,4.10603]
[1728493923786,0.08616277,2435.5,2435.4,5.5309918]
[1728493923958,4.10546,2435.8,2435.4,5.5309918]
[1728493924154,4.10546,2435.8,2435.4,1.4249618]
[1728493924155,0.08616277,2435.5,2435.4,1.4249618]
[1728493924348,4.10568,2435.7,2435.4,1.50670411]
[1728493924895,0.08612828,2435.6,2435.4,1.50670411]
[1728493926156,4.19191828,2435.6,2435.4,0.08174231]
[1728493926371,4.19191828,2435.6,2435.2,0.8209]
[1728493926372,4.19191828,2435.6,2435.3,0.08209395]
[1728493927053,0.08612828,2435.6,2435.3,0.08209395]
[1728493927253,0.08612828,2435.6,2435.3,4.18823395]
[1728493927485,4.10546,2435.8,2435.4,4.69290173]
[1728493927696,0.08612138,2435.7,2435.4,4.18818223]
[1728493927899,4.93798,2435.9,2435.5,4.10593]
[1728493928109,0.08612138,2435.8,2435.6,0.84640461]
[1728493928254,0.08612138,2435.8,2435.4,0.85918335]
[1728493928460,4.1055,2435.8,2435.3,9.83576335]
[1728493928656,0.08324929,2435.7,2435.4,1.11245384]
[1728493928903,7.42,2436.4,2435.5,3.79870512]
[1728493929196,0.08025977,2436.3,2436.1,4.86914]
[1728493929357,0.08025977,2436.3,2436.1,0.7643]
[1728493929557,4.10409,2436.6,2436.2,0.08186079]
[1728493929992,0.07755377,2436.5,2436.2,0.08186079]
[1728493930157,4.18180377,2436.5,2436.2,0.08186079]
[1728493931205,4.10459,2436.3,2435.9,4.86943]
[1728493931405,4.10454,2436.4,2435.9,4.86943]
[1728493931700,4.10454,2436.4,2435.9,8.97461]
[1728493931854,0.0780124,2436.3,2435.9,6.14676151]
[1728493932059,0.0780124,2436.3,2436.0,4.10506]
[1728493933904,0.0780124,2436.3,2436.0,8.21007]
[1728493934100,0.0780124,2436.3,2436.0,4.10501]
[1728493934809,0.0780124,2436.3,2436.1,4.14639277]
[1728493934964,4.10434,2436.5,2436.1,5.1756962]
[1728493935159,0.07719796,2436.2,2436.1,5.1756962]
[1728493935363,4.10434,2436.5,2436.1,1.0707862]
[1728493935600,0.07719796,2436.2,2436.1,1.0707862]
[1728493936097,4.10443,2436.4,2436.1,1.02930343]
[1728493936303,0.07719796,2436.3,2436.1,1.02930343]
[1728493937465,0.07719796,2436.3,2436.0,4.105]
[1728493937703,4.97209796,2436.3,2435.9,6.14685151]
[1728493938361,4.97209796,2436.3,2436.0,0.08209346]
[1728493939211,0.07719796,2436.3,2436.0,4.18705346]
[1728493939617,4.92462,2436.5,2436.0,4.18705346]
[1728493940114,4.18172106,2436.4,2436.0,4.18705346]
[1728493941419,4.18172106,2436.4,2436.0,0.08209346]
[1728493942125,0.07719106,2436.4,2436.1,4.10478]
[1728493944284,4.92384,2437.0,2436.4,4.10433]
[1728493944480,4.18089831,2436.9,2436.5,4.1387165]
[1728493944729,0.07720831,2436.9,2436.6,4.10401]
[1728493944952,0.07720831,2436.9,2436.6,5.45515285]
[1728493945162,0.07720831,2436.9,2436.8,4.10374]
[1728493945330,4.10298,2437.3,2436.8,4.13821225]
[1728493945669,0.07726347,2437.2,2436.9,4.10356]
[1728493946129,0.07734273,2437.1,2436.8,4.1037]
[1728493946536,0.07734273,2437.1,2436.8,4.18576459]
[1728493947287,0.07734273,2437.1,2436.6,4.90167]
[1728493947288,5.009079,2437.1,2436.6,4.90167]
[1728493947563,4.10357,2436.9,2436.1,11.6951623]
[1728493947772,4.10357,2436.9,2436.1,5.0697623]
[1728493947773,4.10431,2436.5,2436.1,5.0697623]
[1728493948059,4.10431,2436.5,2436.1,4.8594]
[1728493948259,4.10431,2436.5,2436.1,5.8971837]
[1728493948448,0.07743232,2436.4,2436.1,5.8971837]
[1728493948863,4.10409,2436.6,2436.2,4.10475]
[1728493949334,0.07743232,2436.5,2436.2,4.18683523]
[1728493949663,0.07743232,2436.5,2436.3,4.10458]
[1728493949825,0.07743232,2436.5,2436.2,0.08208523]
[1728493950024,4.10408,2436.6,2436.2,4.18681523]
[1728493950541,0.07743232,2436.5,2436.2,4.18681523]
[1728493951124,0.07743232,2436.5,2436.3,4.10448]
[1728493951330,4.10374,2436.8,2436.4,4.18648849]
[1728493951545,0.07730483,2436.7,2436.4,4.18648849]
[1728493951744,4.10374,2436.8,2436.4,4.18648849]
[1728493952064,0.07730483,2436.7,2436.4,4.18648849]
[1728493952431,4.10374,2436.8,2436.4,4.10441]
[1728493952896,0.07730483,2436.7,2436.4,4.10441]
[1728493953097,4.10374,2436.8,2436.4,4.10441]
[1728493953301,0.07730483,2436.7,2436.4,4.10441]
[1728493953502,4.10374,2436.8,2436.4,4.10441]
[1728493953704,0.07730483,2436.7,2436.4,4.10441]
[1728493953912,4.85838,2436.9,2436.4,4.10434]
[1728493954108,0.07730483,2436.8,2436.4,4.10434]
[1728493954617,4.18104483,2436.8,2436.4,4.10434]
[1728493955129,4.18104483,2436.8,2436.3,4.18661849]
[1728493955284,4.18104483,2436.8,2436.4,4.10439]
[1728493955621,4.18104483,2436.8,2436.4,4.18646999]
[1728493956396,4.18104483,2436.8,2436.4,4.10439]
[1728493956828,4.18104483,2436.8,2436.3,0.08207999]
[1728493957037,4.93636,2436.6,2436.2,4.10473]
[1728493957348,4.18112946,2436.5,2436.1,4.85949]
[1728493957491,0.07681946,2436.5,2436.2,4.12682405]
[1728493957697,4.18108946,2436.5,2436.1,4.85949]
[1728493957891,0.07681946,2436.5,2436.1,9.860744]
[1728493958734,0.07681946,2436.5,2436.2,4.10475]
[1728493959129,0.07681946,2436.5,2436.3,4.10454]
[1728493959329,0.07681946,2436.5,2436.3,4.18662307]